[Event "Late-Titled-Tuesday-Blitz-April-02-2024"]
[Site "Chess.com"]
[Date "2024.04.02"]
[Round "4"]
[White "misterlamine"]
[Black "TheMagician"]
[Result "0-1"]
[WhiteElo "2463"]
[BlackElo "2309"]
[TimeControl "180+1"]
[EndTime "14:38:43 PDT"]
[Termination "TheMagician won by resignation"]

1. d4 {[%clk 0:03:00.9]} 1... Nf6 {[%clk 0:02:59.4]} 2. Nf3 {[%clk 0:03:00.9]}
2... e6 {[%clk 0:02:59.3]} 3. Bf4 {[%clk 0:02:57.1]} 3... c5 {[%clk 0:02:56.4]}
4. e3 {[%clk 0:02:56.4]} 4... Nc6 {[%clk 0:02:55.7]} 5. c3 {[%clk 0:02:55.8]}
5... Qb6 {[%clk 0:02:54.7]} 6. Qb3 {[%clk 0:02:54.5]} 6... d5 {[%clk 0:02:51.5]}
7. Bb5 {[%clk 0:02:47.8]} 7... Bd7 {[%clk 0:02:50]} 8. O-O {[%clk 0:02:39.8]}
8... c4 {[%clk 0:02:40.9]} 9. Qa4 {[%clk 0:02:35.4]} 9... a6 {[%clk 0:02:39.2]}
10. Bxc6 {[%clk 0:02:35.4]} 10... Bxc6 {[%clk 0:02:29.8]} 11. Qc2 {[%clk
0:02:35.8]} 11... Be7 {[%clk 0:02:19.4]} 12. Nbd2 {[%clk 0:02:35.6]} 12... O-O
{[%clk 0:02:19.3]} 13. h3 {[%clk 0:02:32.8]} 13... Rfc8 {[%clk 0:02:14.4]} 14.
Ne5 {[%clk 0:02:19.5]} 14... Be8 {[%clk 0:02:04.1]} 15. Bg5 {[%clk 0:02:02.3]}
15... Qc7 {[%clk 0:02:00]} 16. f4 {[%clk 0:01:51.8]} 16... b5 {[%clk 0:01:54.8]}
17. f5 {[%clk 0:01:50]} 17... a5 {[%clk 0:01:41]} 18. Rf2 {[%clk 0:01:31.1]}
18... Ra6 {[%clk 0:01:40]} 19. Raf1 {[%clk 0:01:30.9]} 19... b4 {[%clk
0:01:30.6]} 20. fxe6 {[%clk 0:01:20.3]} 20... Rxe6 {[%clk 0:01:29.4]} 21. Bxf6
{[%clk 0:00:42.9]} 21... Rxf6 {[%clk 0:01:26]} 22. Rxf6 {[%clk 0:00:40.9]} 22...
Bxf6 {[%clk 0:01:19.4]} 23. Ng4 {[%clk 0:00:41.1]} 23... Bg5 {[%clk 0:01:10.4]}
24. Nf3 {[%clk 0:00:36.4]} 24... Qe7 {[%clk 0:00:58.6]} 25. Nxg5 {[%clk
0:00:22.3]} 25... Qxg5 {[%clk 0:00:57.9]} 26. Rf5 {[%clk 0:00:16]} 26... Qd8
{[%clk 0:00:55.4]} 27. Qf2 {[%clk 0:00:13.9]} 27... Rc6 {[%clk 0:00:52.7]} 28.
Qf3 {[%clk 0:00:12.7]} 28... Rd6 {[%clk 0:00:51.2]} 29. Ne5 {[%clk 0:00:13.1]}
29... f6 {[%clk 0:00:51.1]} 30. Ng4 {[%clk 0:00:12]} 30... Bg6 {[%clk
0:00:50.7]} 31. Rf4 {[%clk 0:00:11.5]} 31... Be4 {[%clk 0:00:47.6]} 32. Qg3
{[%clk 0:00:11.8]} 32... Kh8 {[%clk 0:00:46.7]} 33. Nf2 {[%clk 0:00:11]} 33...
Bg6 {[%clk 0:00:44.4]} 34. e4 {[%clk 0:00:11.3]} 34... dxe4 {[%clk 0:00:42.7]}
35. Nxe4 {[%clk 0:00:11.8]} 35... Re6 {[%clk 0:00:42.6]} 36. Nc5 {[%clk
0:00:11.5]} 36... Re2 {[%clk 0:00:41]} 37. Qf3 {[%clk 0:00:10]} 37... Qe7 {[%clk
0:00:40.4]} 38. Kh2 {[%clk 0:00:02.9]} 38... bxc3 {[%clk 0:00:36.9]} 39. bxc3
{[%clk 0:00:02.5]} 39... Be8 {[%clk 0:00:34.6]} 40. Qa8 {[%clk 0:00:03.4]} 40...
g5 {[%clk 0:00:26.5]} 41. Re4 {[%clk 0:00:03.3]} 41... Rxe4 {[%clk 0:00:25.9]}
42. Nxe4 {[%clk 0:00:03]} 42... Kg7 {[%clk 0:00:26.3]} 43. Ng3 {[%clk
0:00:03.3]} 43... Bg6 {[%clk 0:00:22.8]} 44. Qxa5 {[%clk 0:00:02.8]} 44... Qe3
{[%clk 0:00:21.1]} 45. Qb4 {[%clk 0:00:02]} 45... h5 {[%clk 0:00:17.5]} 46. Nf1
{[%clk 0:00:02.5]} 46... Qf4+ {[%clk 0:00:17.1]} 47. Kg1 {[%clk 0:00:03.1]}
47... h4 {[%clk 0:00:17.5]} 48. Nh2 {[%clk 0:00:01.8]} 48... Bd3 {[%clk
0:00:16.5]} 49. Nf3 {[%clk 0:00:02.4]} 49... Qe3+ {[%clk 0:00:16.7]} 50. Kh2
{[%clk 0:00:01.5]} 50... Qf4+ {[%clk 0:00:17]} 51. Kg1 {[%clk 0:00:02.1]} 51...
Be4 {[%clk 0:00:16.5]} 52. Qe7+ {[%clk 0:00:01.7]} 52... Kg6 {[%clk 0:00:16.3]}
53. Qe8+ {[%clk 0:00:02.4]} 53... Kg7 {[%clk 0:00:15.9]} 54. Qe7+ {[%clk
0:00:03.1]} 54... Kh6 {[%clk 0:00:16.3]} 55. Qe8 {[%clk 0:00:03.8]} 55... Bxf3
{[%clk 0:00:16.1]} 56. gxf3 {[%clk 0:00:04.3]} 56... Qg3+ {[%clk 0:00:16.4]} 57.
Kf1 {[%clk 0:00:04.1]} 57... Qxf3+ {[%clk 0:00:16.8]} 58. Ke1 {[%clk 0:00:05]}
58... Qxc3+ {[%clk 0:00:16.4]} 59. Ke2 {[%clk 0:00:05.4]} 59... Qd3+ {[%clk
0:00:16.3]} 60. Kf2 {[%clk 0:00:05.9]} 60... Qxd4+ {[%clk 0:00:16.5]} 61. Qe3
{[%clk 0:00:05.7]} 61... Qxe3+ {[%clk 0:00:14.6]} 62. Kxe3 {[%clk 0:00:06.6]}
62... g4 {[%clk 0:00:15.1]} 63. hxg4 {[%clk 0:00:06.3]} 63... h3 {[%clk
0:00:15.4]} 64. a4 {[%clk 0:00:06.9]} 64... h2 {[%clk 0:00:15.1]} 65. a5 {[%clk
0:00:06.1]} 65... h1=Q {[%clk 0:00:16]} 66. a6 {[%clk 0:00:06.9]} 66... Qa8
{[%clk 0:00:15.9]} 0-1

[Event "Late-Titled-Tuesday-Blitz-April-02-2024"]
[Site "Chess.com"]
[Date "2024.04.02"]
[Round "4"]
[White "AmanteDeMoi"]
[Black "Shankland"]
[Result "0-1"]
[WhiteElo "2599"]
[BlackElo "2908"]
[TimeControl "180+1"]
[EndTime "14:38:48 PDT"]
[Termination "Shankland won on time"]

1. Nf3 {[%clk 0:02:59.2]} 1... d5 {[%clk 0:02:55.9]} 2. e3 {[%clk 0:02:58.5]}
2... Nf6 {[%clk 0:02:54.5]} 3. c4 {[%clk 0:02:57.6]} 3... c6 {[%clk 0:02:54.8]}
4. b3 {[%clk 0:02:57.1]} 4... Bg4 {[%clk 0:02:53.6]} 5. Bb2 {[%clk 0:02:56.5]}
5... e6 {[%clk 0:02:53.8]} 6. Be2 {[%clk 0:02:56.4]} 6... Nbd7 {[%clk
0:02:52.2]} 7. O-O {[%clk 0:02:56.3]} 7... Bd6 {[%clk 0:02:51.4]} 8. d3 {[%clk
0:02:52.4]} 8... O-O {[%clk 0:02:50.8]} 9. Nbd2 {[%clk 0:02:52.4]} 9... Qe7
{[%clk 0:02:51]} 10. Qc2 {[%clk 0:02:48]} 10... a5 {[%clk 0:02:46.8]} 11. Rac1
{[%clk 0:02:35.8]} 11... Rfd8 {[%clk 0:02:41.2]} 12. cxd5 {[%clk 0:02:23.4]}
12... exd5 {[%clk 0:02:39.1]} 13. Rfe1 {[%clk 0:02:16.6]} 13... a4 {[%clk
0:02:34.9]} 14. h3 {[%clk 0:02:10.8]} 14... Bh5 {[%clk 0:02:32.8]} 15. Nd4
{[%clk 0:02:07.9]} 15... Bg6 {[%clk 0:02:32.3]} 16. N2f3 {[%clk 0:01:56.5]}
16... Ba3 {[%clk 0:01:43.3]} 17. Bxa3 {[%clk 0:01:52.3]} 17... Qxa3 {[%clk
0:01:42.7]} 18. Qc3 {[%clk 0:01:35]} 18... c5 {[%clk 0:01:21.6]} 19. Nb5 {[%clk
0:01:23]} 19... Qxa2 {[%clk 0:01:19.4]} 20. Nd2 {[%clk 0:01:10.9]} 20... axb3
{[%clk 0:00:47.1]} 21. Nxb3 {[%clk 0:01:11.8]} 21... d4 {[%clk 0:00:47.4]} 22.
exd4 {[%clk 0:00:54]} 22... Nd5 {[%clk 0:00:47.6]} 23. Qc4 {[%clk 0:00:46]}
23... N7b6 {[%clk 0:00:45.4]} 24. Qc2 {[%clk 0:00:42]} 24... Qxc2 {[%clk
0:00:42.6]} 25. Rxc2 {[%clk 0:00:42.9]} 25... c4 {[%clk 0:00:43.1]} 26. Nc5
{[%clk 0:00:23.8]} 26... Nf4 {[%clk 0:00:37.6]} 27. Rd2 {[%clk 0:00:18.1]} 27...
Nxe2+ {[%clk 0:00:32.1]} 28. Rexe2 {[%clk 0:00:19]} 28... cxd3 {[%clk
0:00:32.6]} 29. Nxd3 {[%clk 0:00:11.8]} 29... Nc4 {[%clk 0:00:31.4]} 30. Rd1
{[%clk 0:00:09.9]} 30... h6 {[%clk 0:00:25]} 31. Ne5 {[%clk 0:00:07.4]} 31...
Nxe5 {[%clk 0:00:20.8]} 32. Rxe5 {[%clk 0:00:08.3]} 32... Ra5 {[%clk 0:00:21.1]}
33. Rde1 {[%clk 0:00:06.9]} 33... f6 {[%clk 0:00:18.5]} 34. Rc5 {[%clk
0:00:06.2]} 34... b6 {[%clk 0:00:16.4]} 35. Rc7 {[%clk 0:00:04.8]} 35... Rxb5
{[%clk 0:00:16.5]} 36. Ree7 {[%clk 0:00:05.5]} 36... Kh8 {[%clk 0:00:15.4]} 37.
Rxg7 {[%clk 0:00:05.5]} 37... Bb1 {[%clk 0:00:15.6]} 38. Rgf7 {[%clk 0:00:03.2]}
38... Rg5 {[%clk 0:00:15.2]} 39. Rxf6 {[%clk 0:00:02.9]} 39... Rg6 {[%clk
0:00:14.6]} 40. Rxg6 {[%clk 0:00:02.3]} 40... Bxg6 {[%clk 0:00:13.8]} 41. Rc6
{[%clk 0:00:03.2]} 41... Kg7 {[%clk 0:00:14]} 42. Rxb6 {[%clk 0:00:02]} 42...
Rxd4 {[%clk 0:00:14.5]} 43. f3 {[%clk 0:00:02.8]} 43... h5 {[%clk 0:00:13.7]}
44. Kh2 {[%clk 0:00:02.6]} 44... h4 {[%clk 0:00:14]} 45. Re6 {[%clk 0:00:02]}
45... Kh6 {[%clk 0:00:12.2]} 46. Re5 {[%clk 0:00:01.9]} 46... Bh7 {[%clk
0:00:09.2]} 47. Re2 {[%clk 0:00:02.2]} 47... Kg5 {[%clk 0:00:08.3]} 48. Kg1
{[%clk 0:00:02.6]} 48... Kf4 {[%clk 0:00:07.1]} 49. Kf2 {[%clk 0:00:03]} 49...
Bf5 {[%clk 0:00:07.3]} 50. Rb2 {[%clk 0:00:02.7]} 50... Rc4 {[%clk 0:00:05.4]}
51. Ra2 {[%clk 0:00:02.9]} 51... Rc2+ {[%clk 0:00:05.5]} 52. Rxc2 {[%clk
0:00:02.9]} 52... Bxc2 {[%clk 0:00:06.4]} 53. Kg1 {[%clk 0:00:01.1]} 53... Kg3
{[%clk 0:00:06.8]} 0-1

[Event "Late-Titled-Tuesday-Blitz-April-02-2024"]
[Site "Chess.com"]
[Date "2024.04.02"]
[Round "4"]
[White "arturdailima"]
[Black "HajiyevKanan"]
[Result "1-0"]
[WhiteElo "2408"]
[BlackElo "2606"]
[TimeControl "180+1"]
[EndTime "14:38:50 PDT"]
[Termination "arturdailima won by resignation"]

1. Nf3 {[%clk 0:02:28.5]} 1... d5 {[%clk 0:02:59.7]} 2. c4 {[%clk 0:02:29]} 2...
c6 {[%clk 0:03:00]} 3. e3 {[%clk 0:02:28.7]} 3... Nf6 {[%clk 0:03:00.8]} 4. Nc3
{[%clk 0:02:28.9]} 4... g6 {[%clk 0:03:01.5]} 5. b3 {[%clk 0:02:29.2]} 5... Bg7
{[%clk 0:03:02.1]} 6. Bb2 {[%clk 0:02:30]} 6... O-O {[%clk 0:03:02.9]} 7. Be2
{[%clk 0:02:30.4]} 7... Bg4 {[%clk 0:03:03.2]} 8. O-O {[%clk 0:02:30.5]} 8...
Nbd7 {[%clk 0:03:03]} 9. h3 {[%clk 0:02:30.4]} 9... Bxf3 {[%clk 0:03:03.5]} 10.
Bxf3 {[%clk 0:02:31]} 10... e6 {[%clk 0:03:00.3]} 11. cxd5 {[%clk 0:02:30.8]}
11... exd5 {[%clk 0:03:00.5]} 12. d4 {[%clk 0:02:31.7]} 12... Re8 {[%clk
0:03:00.6]} 13. Qd2 {[%clk 0:02:31.5]} 13... Qe7 {[%clk 0:03:00.6]} 14. Rfe1
{[%clk 0:02:31.6]} 14... a5 {[%clk 0:03:00.5]} 15. a3 {[%clk 0:02:29.3]} 15...
Ne4 {[%clk 0:02:55.2]} 16. Nxe4 {[%clk 0:02:23.1]} 16... dxe4 {[%clk 0:02:56.1]}
17. Be2 {[%clk 0:02:21.9]} 17... Nb6 {[%clk 0:02:53.3]} 18. b4 {[%clk
0:02:12.9]} 18... Na4 {[%clk 0:02:36.4]} 19. Bc3 {[%clk 0:02:09.5]} 19... Nxc3
{[%clk 0:02:29.3]} 20. Qxc3 {[%clk 0:02:10.4]} 20... h5 {[%clk 0:02:19]} 21.
Reb1 {[%clk 0:01:51.3]} 21... axb4 {[%clk 0:02:12.7]} 22. axb4 {[%clk
0:01:51.1]} 22... Kh7 {[%clk 0:02:11.7]} 23. Rxa8 {[%clk 0:01:44.5]} 23... Rxa8
{[%clk 0:02:12.6]} 24. b5 {[%clk 0:01:45.1]} 24... Ra2 {[%clk 0:02:02.4]} 25.
Bf1 {[%clk 0:01:42.3]} 25... Qf6 {[%clk 0:01:43]} 26. Rb2 {[%clk 0:01:31.8]}
26... Rxb2 {[%clk 0:01:43.2]} 27. Qxb2 {[%clk 0:01:32.7]} 27... c5 {[%clk
0:01:44.1]} 28. Qc2 {[%clk 0:01:27.8]} 28... cxd4 {[%clk 0:01:42.7]} 29. Qxe4
{[%clk 0:01:28.4]} 29... Qb6 {[%clk 0:01:36.9]} 30. exd4 {[%clk 0:01:19.6]}
30... Bxd4 {[%clk 0:01:36.7]} 31. Qf3 {[%clk 0:01:20.2]} 31... Kg7 {[%clk
0:01:34.4]} 32. g3 {[%clk 0:01:12.4]} 32... f5 {[%clk 0:01:31.1]} 33. h4 {[%clk
0:01:10.4]} 33... Qc7 {[%clk 0:01:23.4]} 34. Kg2 {[%clk 0:01:07.8]} 34... b6
{[%clk 0:01:23.8]} 35. Qd5 {[%clk 0:01:01.8]} 35... Qc5 {[%clk 0:01:12]} 36.
Qb7+ {[%clk 0:00:56.7]} 36... Kf6 {[%clk 0:01:09.5]} 37. Qf3 {[%clk 0:00:50.9]}
37... Ke6 {[%clk 0:01:01.7]} 38. Qe2+ {[%clk 0:00:48.4]} 38... Qe5 {[%clk
0:01:00.8]} 39. Qc4+ {[%clk 0:00:47.2]} 39... Qd5+ {[%clk 0:01:01.4]} 40. Qxd5+
{[%clk 0:00:41.1]} 40... Kxd5 {[%clk 0:01:02.3]} 41. f4 {[%clk 0:00:38.1]} 41...
Kc5 {[%clk 0:00:59.2]} 42. Be2 {[%clk 0:00:37]} 42... Be3 {[%clk 0:00:58.2]} 43.
Kf3 {[%clk 0:00:36.2]} 43... Bd4 {[%clk 0:00:58.6]} 44. Bf1 {[%clk 0:00:36]}
44... Bg1 {[%clk 0:00:58]} 45. Kg2 {[%clk 0:00:35.2]} 45... Bd4 {[%clk 0:00:58]}
46. Kf3 {[%clk 0:00:35.5]} 46... Kd5 {[%clk 0:00:58.3]} 47. Be2 {[%clk
0:00:34.7]} 47... Bc5 {[%clk 0:00:58.6]} 48. Kg2 {[%clk 0:00:34.1]} 48... Kd4
{[%clk 0:00:58.5]} 49. Bf3 {[%clk 0:00:33.2]} 49... Kc4 {[%clk 0:00:45.1]} 50.
Bc6 {[%clk 0:00:33.3]} 50... Bf8 {[%clk 0:00:37.5]} 51. Kf3 {[%clk 0:00:32.3]}
51... Kd4 {[%clk 0:00:35.7]} 52. Be8 {[%clk 0:00:31.7]} 52... Kc5 {[%clk
0:00:36]} 53. Bxg6 {[%clk 0:00:27.9]} 53... Kxb5 {[%clk 0:00:36.5]} 54. Bxh5
{[%clk 0:00:28.6]} 54... Kc5 {[%clk 0:00:32]} 55. Bg6 {[%clk 0:00:28.7]} 55...
b5 {[%clk 0:00:31.5]} 56. Bxf5 {[%clk 0:00:29]} 56... b4 {[%clk 0:00:32.1]} 57.
g4 {[%clk 0:00:27.5]} 57... Kd6 {[%clk 0:00:26.6]} 58. g5 {[%clk 0:00:26.8]}
58... Ke7 {[%clk 0:00:25.4]} 59. h5 {[%clk 0:00:27.1]} 59... Kf7 {[%clk
0:00:24.5]} 60. Bc2 {[%clk 0:00:26.3]} 60... Kg8 {[%clk 0:00:22.6]} 61. Kg4
{[%clk 0:00:26.5]} 61... Bd6 {[%clk 0:00:22.1]} 62. h6 {[%clk 0:00:24.9]} 62...
Bf8 {[%clk 0:00:21.1]} 63. Kh5 {[%clk 0:00:24.2]} 63... Kh8 {[%clk 0:00:21]} 64.
g6 {[%clk 0:00:22.1]} 64... Kg8 {[%clk 0:00:15.6]} 65. g7 {[%clk 0:00:17.5]}
65... Bxg7 {[%clk 0:00:10]} 66. hxg7 {[%clk 0:00:18.4]} 66... Kxg7 {[%clk
0:00:10.8]} 67. Kg5 {[%clk 0:00:18.9]} 67... Kf7 {[%clk 0:00:11]} 68. Bb3+
{[%clk 0:00:19.4]} 68... Kg7 {[%clk 0:00:11.7]} 69. Kf5 {[%clk 0:00:19.1]} 69...
Kf8 {[%clk 0:00:12.6]} 70. Kf6 {[%clk 0:00:19.3]} 70... Ke8 {[%clk 0:00:12.3]}
71. Kg7 {[%clk 0:00:19.7]} 1-0

[Event "Late-Titled-Tuesday-Blitz-April-02-2024"]
[Site "Chess.com"]
[Date "2024.04.02"]
[Round "4"]
[White "kleber2007"]
[Black "chessydotcom"]
[Result "1-0"]
[WhiteElo "2487"]
[BlackElo "2290"]
[TimeControl "180+1"]
[EndTime "14:38:51 PDT"]
[Termination "kleber2007 won on time"]

1. b3 {[%clk 0:02:54.6]} 1... e5 {[%clk 0:02:57.9]} 2. Bb2 {[%clk 0:02:54.4]}
2... Bd6 {[%clk 0:02:58.2]} 3. e3 {[%clk 0:02:50.2]} 3... c6 {[%clk 0:02:55.1]}
4. c4 {[%clk 0:02:49.7]} 4... Bc7 {[%clk 0:02:54.3]} 5. Nc3 {[%clk 0:02:49.4]}
5... d6 {[%clk 0:02:54.3]} 6. Nge2 {[%clk 0:02:47.5]} 6... Nd7 {[%clk
0:02:52.9]} 7. d4 {[%clk 0:02:47.1]} 7... f5 {[%clk 0:02:51.5]} 8. g3 {[%clk
0:02:41.5]} 8... Ngf6 {[%clk 0:02:48.9]} 9. Bg2 {[%clk 0:02:41.2]} 9... O-O
{[%clk 0:02:48]} 10. Qc2 {[%clk 0:02:41.1]} 10... Rb8 {[%clk 0:02:44.8]} 11.
Qxf5 {[%clk 0:02:29.1]} 11... e4 {[%clk 0:02:20.3]} 12. Nxe4 {[%clk 0:02:20.7]}
12... Ne5 {[%clk 0:02:08.9]} 13. Nxf6+ {[%clk 0:02:18.5]} 13... Rxf6 {[%clk
0:02:09.8]} 14. Qc2 {[%clk 0:02:11.8]} 14... Nf3+ {[%clk 0:02:02.7]} 15. Kf1
{[%clk 0:02:01.3]} 15... Bf5 {[%clk 0:01:58.5]} 16. e4 {[%clk 0:02:01.2]} 16...
Bxe4 {[%clk 0:01:58]} 17. Qc3 {[%clk 0:01:58.6]} 17... Qf8 {[%clk 0:01:53.2]}
18. d5 {[%clk 0:01:50.2]} 18... Nd2+ {[%clk 0:01:30.9]} 19. Ke1 {[%clk
0:01:35.1]} 19... Bxg2 {[%clk 0:01:26.2]} 20. Kxd2 {[%clk 0:01:34.4]} 20... Bxh1
{[%clk 0:01:25]} 21. Rxh1 {[%clk 0:01:34.5]} 21... cxd5 {[%clk 0:01:22.7]} 22.
cxd5 {[%clk 0:01:33.9]} 22... Rc8 {[%clk 0:01:16.3]} 23. Rc1 {[%clk 0:01:26.7]}
23... Qd8 {[%clk 0:01:05.1]} 24. Qe3 {[%clk 0:01:17.3]} 24... Ba5+ {[%clk
0:01:03.2]} 25. Kd1 {[%clk 0:01:14]} 25... Rxc1+ {[%clk 0:01:03.1]} 26. Nxc1
{[%clk 0:01:09.3]} 26... Bb6 {[%clk 0:01:01.9]} 27. Qe4 {[%clk 0:01:03.4]} 27...
Rxf2 {[%clk 0:00:53.8]} 28. Nd3 {[%clk 0:01:03.2]} 28... Rf1+ {[%clk 0:00:51.3]}
29. Ke2 {[%clk 0:00:58.5]} 29... Rf8 {[%clk 0:00:49.8]} 30. Nf4 {[%clk
0:00:35.3]} 30... Qe8 {[%clk 0:00:46.3]} 31. Kd3 {[%clk 0:00:22.7]} 31... Qb5+
{[%clk 0:00:42.9]} 32. Qc4 {[%clk 0:00:21.5]} 32... Qxc4+ {[%clk 0:00:41.1]} 33.
bxc4 {[%clk 0:00:21.4]} 33... Re8 {[%clk 0:00:33.8]} 34. Ne6 {[%clk 0:00:20.9]}
34... Kf7 {[%clk 0:00:32]} 35. Ng5+ {[%clk 0:00:18.6]} 35... Kg6 {[%clk
0:00:29.9]} 36. Ne6 {[%clk 0:00:18]} 36... h5 {[%clk 0:00:26.4]} 37. Nf4+ {[%clk
0:00:16]} 37... Kf5 {[%clk 0:00:23.2]} 38. Nxh5 {[%clk 0:00:15.8]} 38... Re3+
{[%clk 0:00:22.7]} 39. Kd2 {[%clk 0:00:15.9]} 39... g6 {[%clk 0:00:18]} 40. Ng7+
{[%clk 0:00:15]} 40... Kg5 {[%clk 0:00:18.2]} 41. Ne6+ {[%clk 0:00:15.5]} 41...
Kg4 {[%clk 0:00:17]} 42. c5 {[%clk 0:00:15.8]} 42... Re4 {[%clk 0:00:07.6]} 43.
cxb6 {[%clk 0:00:13.3]} 43... axb6 {[%clk 0:00:08.5]} 44. Bd4 {[%clk 0:00:12.3]}
44... Kh3 {[%clk 0:00:07.5]} 45. Bxb6 {[%clk 0:00:12.3]} 45... Kxh2 {[%clk
0:00:07.4]} 46. Bc7 {[%clk 0:00:12.9]} 46... Ra4 {[%clk 0:00:07.8]} 47. Bxd6
{[%clk 0:00:13]} 47... Rxa2+ {[%clk 0:00:08.7]} 48. Kd3 {[%clk 0:00:13.3]} 48...
Kh3 {[%clk 0:00:09.6]} 49. Ke4 {[%clk 0:00:11.8]} 49... Kg4 {[%clk 0:00:10.2]}
50. Bf4 {[%clk 0:00:11.2]} 50... Re2+ {[%clk 0:00:10.1]} 51. Kd4 {[%clk
0:00:11.3]} 51... Kf5 {[%clk 0:00:09.7]} 52. Ng7+ {[%clk 0:00:10]} 52... Kf6
{[%clk 0:00:09.4]} 53. Ne8+ {[%clk 0:00:10.9]} 53... Ke7 {[%clk 0:00:09.3]} 54.
Nd6 {[%clk 0:00:10.6]} 54... Ra2 {[%clk 0:00:07.7]} 55. Nxb7 {[%clk 0:00:09.9]}
55... Ra4+ {[%clk 0:00:08]} 56. Ke5 {[%clk 0:00:09.8]} 56... Ra1 {[%clk
0:00:07.2]} 57. d6+ {[%clk 0:00:09.9]} 57... Ke8 {[%clk 0:00:07.3]} 58. Nc5
{[%clk 0:00:09.5]} 58... Re1+ {[%clk 0:00:07.4]} 59. Kd5 {[%clk 0:00:08.9]}
59... Rd1+ {[%clk 0:00:07.1]} 60. Kc6 {[%clk 0:00:08.9]} 60... Ra1 {[%clk
0:00:05.2]} 61. d7+ {[%clk 0:00:08.9]} 61... Ke7 {[%clk 0:00:05.5]} 62. Bg5+
{[%clk 0:00:09.1]} 1-0

[Event "Late-Titled-Tuesday-Blitz-April-02-2024"]
[Site "Chess.com"]
[Date "2024.04.02"]
[Round "4"]
[White "karinachess1"]
[Black "RaugintaBulba"]
[Result "1/2-1/2"]
[WhiteElo "2609"]
[BlackElo "2432"]
[TimeControl "180+1"]
[EndTime "14:38:52 PDT"]
[Termination "Game drawn - insufficient material"]

1. d4 {[%clk 0:03:00.9]} 1... Nf6 {[%clk 0:02:59.6]} 2. c4 {[%clk 0:03:00.6]}
2... c5 {[%clk 0:02:56.9]} 3. d5 {[%clk 0:02:57.5]} 3... e6 {[%clk 0:02:56.3]}
4. Nc3 {[%clk 0:02:57.1]} 4... exd5 {[%clk 0:02:57]} 5. cxd5 {[%clk 0:02:58]}
5... d6 {[%clk 0:02:57.5]} 6. Nf3 {[%clk 0:02:58.6]} 6... g6 {[%clk 0:02:58.1]}
7. Bf4 {[%clk 0:02:58.8]} 7... Bg7 {[%clk 0:02:56.8]} 8. h3 {[%clk 0:02:59.2]}
8... O-O {[%clk 0:02:56.6]} 9. e4 {[%clk 0:02:59.4]} 9... Re8 {[%clk 0:02:55.5]}
10. Bd3 {[%clk 0:02:59]} 10... b5 {[%clk 0:02:51.6]} 11. Nxb5 {[%clk 0:02:53.7]}
11... Nxd5 {[%clk 0:02:42.5]} 12. Bd2 {[%clk 0:02:48.8]} 12... c4 {[%clk
0:02:25.9]} 13. O-O {[%clk 0:02:21.8]} 13... Nb6 {[%clk 0:02:20.2]} 14. Bc2
{[%clk 0:02:18.1]} 14... Nc6 {[%clk 0:01:59.5]} 15. Bc3 {[%clk 0:02:16.6]} 15...
d5 {[%clk 0:01:24.5]} 16. exd5 {[%clk 0:02:00.9]} 16... Nxd5 {[%clk 0:01:23.6]}
17. Bxg7 {[%clk 0:01:43.1]} 17... Kxg7 {[%clk 0:01:22]} 18. Qd2 {[%clk
0:01:26.8]} 18... Ba6 {[%clk 0:01:18.1]} 19. Nc3 {[%clk 0:01:26.2]} 19... Ndb4
{[%clk 0:01:16.7]} 20. Qxd8 {[%clk 0:01:10.9]} 20... Raxd8 {[%clk 0:01:17.6]}
21. Ba4 {[%clk 0:01:11.5]} 21... Rd6 {[%clk 0:01:11.4]} 22. Rfd1 {[%clk
0:00:49.7]} 22... Nd3 {[%clk 0:01:10.6]} 23. b3 {[%clk 0:00:47.2]} 23... cxb3
{[%clk 0:01:07.8]} 24. axb3 {[%clk 0:00:47.7]} 24... Rc8 {[%clk 0:01:04.8]} 25.
Nb5 {[%clk 0:00:38]} 25... Rd5 {[%clk 0:01:00.1]} 26. Nc3 {[%clk 0:00:27.6]}
26... Rc5 {[%clk 0:00:57]} 27. Ne4 {[%clk 0:00:27.3]} 27... Rd5 {[%clk
0:00:55.7]} 28. Rac1 {[%clk 0:00:26.1]} 28... Nd4 {[%clk 0:00:46]} 29. Rxc8
{[%clk 0:00:22.1]} 29... Nxf3+ {[%clk 0:00:46.3]} 30. gxf3 {[%clk 0:00:23]}
30... Bxc8 {[%clk 0:00:46.9]} 31. Bc6 {[%clk 0:00:15]} 31... Rd4 {[%clk
0:00:47.4]} 32. Bb5 {[%clk 0:00:14.4]} 32... Ne5 {[%clk 0:00:42.3]} 33. Rxd4
{[%clk 0:00:12.3]} 33... Nxf3+ {[%clk 0:00:42.4]} 34. Kg2 {[%clk 0:00:12.9]}
34... Nxd4 {[%clk 0:00:43.3]} 35. Bc4 {[%clk 0:00:13.6]} 35... Bb7 {[%clk
0:00:42.9]} 36. f3 {[%clk 0:00:14.2]} 36... Nxf3 {[%clk 0:00:41.5]} 37. Nd6
{[%clk 0:00:10.3]} 37... Ba8 {[%clk 0:00:38.3]} 38. Kf2 {[%clk 0:00:10.6]} 38...
Ne5 {[%clk 0:00:36.9]} 39. Be2 {[%clk 0:00:10]} 39... Bd5 {[%clk 0:00:34.5]} 40.
b4 {[%clk 0:00:09.9]} 40... Nc6 {[%clk 0:00:31.1]} 41. b5 {[%clk 0:00:08.4]}
41... Nd4 {[%clk 0:00:30.7]} 42. Bd3 {[%clk 0:00:08.6]} 42... Be6 {[%clk
0:00:24.5]} 43. h4 {[%clk 0:00:09.1]} 43... Bd7 {[%clk 0:00:24]} 44. Ke3 {[%clk
0:00:08.8]} 44... Nb3 {[%clk 0:00:22.9]} 45. Bc4 {[%clk 0:00:05.7]} 45... Na5
{[%clk 0:00:21.2]} 46. Bxf7 {[%clk 0:00:03.7]} 46... Bxb5 {[%clk 0:00:19.2]} 47.
Nxb5 {[%clk 0:00:04.5]} 47... Kxf7 {[%clk 0:00:19.1]} 48. Nxa7 {[%clk
0:00:05.2]} 48... Nc4+ {[%clk 0:00:19.8]} 49. Kf4 {[%clk 0:00:05.5]} 49... Nb6
{[%clk 0:00:16]} 50. Nb5 {[%clk 0:00:05.5]} 50... Nd5+ {[%clk 0:00:16.7]} 51.
Kg3 {[%clk 0:00:06.1]} 51... Ne7 {[%clk 0:00:16.4]} 52. Nd6+ {[%clk 0:00:06]}
52... Kf6 {[%clk 0:00:16.4]} 53. Ne4+ {[%clk 0:00:06.9]} 53... Kf5 {[%clk
0:00:09.4]} 54. Ng5 {[%clk 0:00:07.3]} 54... h6 {[%clk 0:00:09.5]} 55. Nf3
{[%clk 0:00:07.2]} 55... Kf6 {[%clk 0:00:09.6]} 56. Kh3 {[%clk 0:00:05.7]} 56...
Nf5 {[%clk 0:00:10.5]} 57. Nh2 {[%clk 0:00:05.6]} 57... Nd6 {[%clk 0:00:10]} 58.
Ng4+ {[%clk 0:00:05.7]} 58... Kg7 {[%clk 0:00:10.9]} 59. Kg3 {[%clk 0:00:05.3]}
59... Nf7 {[%clk 0:00:11.2]} 60. Kh3 {[%clk 0:00:05.2]} 60... Nd8 {[%clk
0:00:11.9]} 61. Kg3 {[%clk 0:00:05.5]} 61... Ne6 {[%clk 0:00:12.6]} 62. Kh3
{[%clk 0:00:05.8]} 62... Nd4 {[%clk 0:00:13.2]} 63. Kg3 {[%clk 0:00:05.3]} 63...
Nf5+ {[%clk 0:00:13.9]} 64. Kh3 {[%clk 0:00:05.9]} 64... Kf7 {[%clk 0:00:13.5]}
65. Ne5+ {[%clk 0:00:06.1]} 65... Kf6 {[%clk 0:00:13.7]} 66. Ng4+ {[%clk
0:00:06.5]} 66... Ke6 {[%clk 0:00:14.3]} 67. Nf2 {[%clk 0:00:05.1]} 67... Ke5
{[%clk 0:00:12.2]} 68. Nd3+ {[%clk 0:00:05]} 68... Ke4 {[%clk 0:00:11.9]} 69.
Nc5+ {[%clk 0:00:05.3]} 69... Kf4 {[%clk 0:00:12]} 70. Nd3+ {[%clk 0:00:05.2]}
70... Kf3 {[%clk 0:00:12.2]} 71. Ne5+ {[%clk 0:00:05.5]} 71... Ke4 {[%clk
0:00:11.9]} 72. Nxg6 {[%clk 0:00:06.4]} 72... Nxh4 {[%clk 0:00:12.7]} 73. Kxh4
{[%clk 0:00:06.2]} 73... Kf5 {[%clk 0:00:13.3]} 74. Kh5 {[%clk 0:00:07.1]} 74...
Ke6 {[%clk 0:00:14.2]} 75. Kxh6 {[%clk 0:00:07.8]} 1/2-1/2